fUST/lending_fUST_20240814
["ID","MTS","AMOUNT","RATE_DAILY","PERIOD"]
[334837508,1723607432306,-162.232452,0.00012395,2]
[334837512,1723607432317,-153.92766958,0.00012444,2]
[334837516,1723607432330,-8.30478242,0.00012444,2]
[334837519,1723607432340,-162.232452,0.00012492,2]
[334837522,1723607432359,-162.232452,0.00012541,2]
[334837524,1723607432369,-162.232452,0.00012589,2]
[334837528,1723607432379,-162.232452,0.00012638,2]
[334837530,1723607432390,-162.232452,0.00012686,2]
[334837532,1723607432401,-162.232452,0.00012735,2]
[334837535,1723607432412,-153.0,0.00012941,2]
[334837538,1723607432422,-500.0,0.00012986,2]
[334837541,1723607432432,-454.3180478,0.00013,2]
[334837543,1723607432442,-300.0,0.0001304,2]
[334837545,1723607432453,-154.141218,0.00013041,2]
[334837547,1723607432464,-153.0,0.00013041,2]
[334837549,1723607432474,-153.0,0.00013041,2]
[334837551,1723607432485,-394.5016984,0.00013041,2]
[334837554,1723607432496,-408.7610421,0.00013041,2]
[334837556,1723607432508,-558.6062034,0.00013078,2]
[334837558,1723607432519,-294.8038627,0.00013078,2]
[334837560,1723607432529,-294.8038627,0.00013078,2]
[334837562,1723607432538,-294.7678211,0.00013078,2]
[334837564,1723607432548,-154.2312945,0.00013078,2]
[334837566,1723607432559,-153.0,0.00013151,2]
[334837568,1723607432571,-207.3931713,0.00013151,2]
[334837571,1723607432583,-207.3931713,0.00013151,2]
[334837573,1723607432595,-294.8038627,0.00013151,2]
[334837574,1723607432609,-294.8038627,0.00013151,2]
[334837577,1723607432619,-535.1047623,0.00013151,2]
[334837579,1723607432630,-294.8038627,0.00013151,2]
[334837581,1723607432641,-267.9801969,0.00013151,2]
[334837583,1723607432652,-267.9126531,0.00013155,2]
[334837585,1723607432663,-535.8253062,0.00013155,2]
[334837587,1723607432674,-268.0002184,0.00013178,2]
[334837589,1723607432685,-294.7678211,0.00013185,2]
[334837591,1723607432696,-589.5356422,0.00013185,2]
[334837594,1723607432707,-589.5356422,0.00013185,2]
[334837596,1723607432717,-150.0,0.00013194,2]
[334837598,1723607432730,-306.6873959,0.00013214,2]
[334837600,1723607432741,-153.4447461,0.00013214,2]
[334837602,1723607432751,-471.71184718,0.00013247,2]
[334837604,1723607432763,-268.0002184,0.0001326,2]
[334837606,1723607432775,-592.5991788,0.0001326,2]
[334837608,1723607432784,-267.9801969,0.0001326,2]
[334837610,1723607432795,-294.8038627,0.0001326,2]
[334837612,1723607432805,-2359.90073039,0.00013294,2]
[334838173,1723607438423,-273.37336231,9.9e-05,2]
[334838175,1723607438433,-1335.6746918,0.00013294,2]
[334838177,1723607438446,-1072.05930977,0.00013294,2]
[334838179,1723607438459,-207.3387286,0.0001337,2]
[334838181,1723607438468,-267.9801969,0.00013425,2]
[334838183,1723607438478,-2297.82559601,0.00013524,2]
[334838185,1723607438488,-1836.7250283,0.00013525,2]
[334838187,1723607438498,-1083.25095158,0.00013533,2]
[334838190,1723607438510,-1083.25095157,0.00013533,2]
[334838192,1723607438520,-154.786509,0.000136,2]
[334838194,1723607438531,-336.64263509,0.000136,2]
[334838196,1723607438543,-2127.86612381,0.00013602,2]
[334838198,1723607438557,-4208.03498215,0.00013602,2]
[334838200,1723607438568,-1868.01555269,0.00013624,2]
[334838202,1723607438579,-77856.95031141,0.00013624,2]
[334838218,1723607438712,-31630.33860834,0.00013624,2]
[334838223,1723607438747,-199623.82362768,0.00013624,2]
[334838225,1723607438764,-59656.71332957,0.00013624,2]
[334838228,1723607438776,-1946.92,0.00013633,2]
[334838230,1723607438788,-1946.92,0.00013633,2]
[334838232,1723607438799,-1946.92,0.00013633,2]
[334838234,1723607438810,-1946.92,0.00013633,2]
[334838236,1723607438821,-1946.92,0.00013633,2]
[334838238,1723607438830,-1946.92,0.00013633,2]
[334838241,1723607438842,-1946.92,0.00013633,2]
[334838243,1723607438854,-1946.92,0.00013633,2]
[334838245,1723607438866,-1946.92,0.00013633,2]
[334838247,1723607438877,-162.96445875,0.00013634,2]
[334838249,1723607438887,-2920.03671909,0.00013634,2]
[334838252,1723607438901,-723.30358937,0.00013634,2]
[334838321,1723607440214,-671.77936835,0.00013534,2]
[334838322,1723607440278,-411.47158322,0.00013534,2]
[334838323,1723607440288,-650.96441596,0.00013634,2]
[334838324,1723607440298,-3617.65023025,0.00013634,2]
[334838325,1723607440308,-510.12217652,0.00013634,2]
[334838326,1723607440319,-1100.52312279,0.00013634,2]
[334838327,1723607440332,-1384.62341381,0.00013634,2]
[334838328,1723607440342,-151.0,0.00013634,2]
[334838329,1723607440354,-151.0,0.00013634,2]
[334838330,1723607440364,-1719.36764708,0.00013634,2]
[334838331,1723607440378,-320.66119592,0.00013634,2]
[334838332,1723607440388,-182.581677,0.00013634,2]
[334838333,1723607440399,-2040.028843,0.00013634,2]
[334838334,1723607440409,-182.581677,0.00013634,2]
[334838335,1723607440420,-151.0,0.00013634,2]
[334838336,1723607440430,-151.0,0.00013634,2]
[334838337,1723607440439,-151.0,0.00013634,2]
[334838338,1723607440452,-152.188169,0.00013634,2]
[334838339,1723607440461,-162.056625,0.00013634,2]
[334838340,1723607440472,-162.056625,0.00013634,2]
[334838341,1723607440482,-162.056625,0.00013634,2]
[334838342,1723607440493,-283.845044,0.00013634,2]
[334838343,1723607440503,-162.056625,0.00013634,2]
[334838344,1723607440512,-283.845044,0.00013634,2]
[334838345,1723607440522,-162.056625,0.00013634,2]
[334838346,1723607440532,-283.845044,0.00013634,2]
[334838347,1723607440542,-162.056625,0.00013634,2]
[334838348,1723607440552,-283.845044,0.00013634,2]
[334838349,1723607440563,-283.845044,0.00013634,2]
[334838350,1723607440575,-151.0,0.00013634,2]
[334838351,1723607440586,-283.845044,0.00013634,2]
[334838352,1723607440597,-151.0,0.00013634,2]
[334838353,1723607440611,-151.0,0.00013634,2]
[334838354,1723607440623,-162.056625,0.00013634,2]
[334838355,1723607440634,-151.0,0.00013634,2]
[334838356,1723607440644,-162.056625,0.00013634,2]
[334838357,1723607440655,-162.056625,0.00013634,2]
[334838358,1723607440665,-283.845044,0.00013634,2]
[334838359,1723607440675,-162.056625,0.00013634,2]
[334838360,1723607440686,-283.845044,0.00013634,2]
[334838361,1723607440697,-283.845044,0.00013634,2]
[334838362,1723607440707,-162.056625,0.00013634,2]
[334838363,1723607440718,-283.845044,0.00013634,2]
[334838364,1723607440730,-162.056625,0.00013634,2]
[334838365,1723607440740,-283.845044,0.00013634,2]
[334838366,1723607440749,-152.083255,0.00013634,2]
[334838367,1723607440759,-283.845044,0.00013634,2]
[334838368,1723607440768,-2109.382194,0.00013634,2]
[334838369,1723607440778,-2109.382194,0.00013634,2]
[334838370,1723607440787,-2109.382194,0.00013634,2]
[334838371,1723607440797,-2109.382194,0.00013634,2]
[334838372,1723607440807,-2109.382194,0.00013634,2]
[334838373,1723607440816,-2109.382194,0.00013634,2]
[334838374,1723607440826,-2109.382194,0.00013634,2]
[334838375,1723607440835,-2109.382194,0.00013634,2]
[334838376,1723607440844,-2109.382194,0.00013634,2]
[334838377,1723607440854,-2109.382194,0.00013634,2]
[334838378,1723607440864,-2109.382194,0.00013634,2]
[334838379,1723607440874,-2109.382194,0.00013634,2]
[334838380,1723607440885,-156.66014,0.00013634,2]
[334838381,1723607440895,-156.66014,0.00013634,2]
[334838382,1723607440905,-156.66014,0.00013634,2]
[334838383,1723607440915,-156.66014,0.00013634,2]
[334838384,1723607440925,-156.66014,0.00013634,2]
[334838385,1723607440935,-156.66014,0.00013634,2]
[334838386,1723607440945,-156.66014,0.00013634,2]
[334838387,1723607440955,-156.66014,0.00013634,2]
[334838388,1723607440967,-156.66014,0.00013634,2]
[334838389,1723607440977,-156.66014,0.00013634,2]
[334838390,1723607440986,-156.66014,0.00013634,2]
[334838391,1723607440997,-156.66014,0.00013634,2]
[334838392,1723607441007,-151.0,0.00013634,2]
[334838393,1723607441019,-151.0,0.00013634,2]
[334838394,1723607441028,-151.0,0.00013634,2]
[334838395,1723607441038,-151.0,0.00013634,2]
[334838396,1723607441047,-151.0,0.00013634,2]
[334838397,1723607441056,-151.0,0.00013634,2]
[334838398,1723607441066,-151.0,0.00013634,2]
[334838399,1723607441077,-151.0,0.00013634,2]
[334838400,1723607441087,-151.0,0.00013634,2]
[334838401,1723607441099,-151.0,0.00013634,2]
[334838402,1723607441113,-151.0,0.00013634,2]
[334838403,1723607441123,-151.0,0.00013634,2]
[334838404,1723607441132,-151.0,0.00013634,2]
[334838405,1723607441144,-153.239316,0.00013634,2]
[334838406,1723607441155,-264.678393,0.00013634,2]
[334838407,1723607441166,-264.678393,0.00013634,2]
[334838408,1723607441177,-264.678393,0.00013634,2]
[334838409,1723607441189,-264.678393,0.00013634,2]
[334838410,1723607441201,-264.678393,0.00013634,2]
[334838411,1723607441212,-264.678393,0.00013634,2]
[334838412,1723607441223,-264.678393,0.00013634,2]
[334838413,1723607441235,-335.452633,0.00013634,2]
[334838414,1723607441245,-335.452633,0.00013634,2]
[334838415,1723607441257,-335.452633,0.00013634,2]
[334838416,1723607441268,-264.678393,0.00013634,2]
[334838417,1723607441277,-335.452633,0.00013634,2]
[334838418,1723607441289,-264.678393,0.00013634,2]
[334838419,1723607441298,-335.452633,0.00013634,2]
[334838420,1723607441308,-335.452633,0.00013634,2]
[334838421,1723607441318,-264.678393,0.00013634,2]
[334838422,1723607441328,-264.678393,0.00013634,2]
[334838423,1723607441339,-264.678393,0.00013634,2]
[334838424,1723607441351,-264.678393,0.00013634,2]
[334838425,1723607441360,-264.678393,0.00013634,2]
[334838426,1723607441369,-335.452633,0.00013634,2]
[334838427,1723607441379,-335.452633,0.00013634,2]
[334838428,1723607441390,-335.452633,0.00013634,2]
[334838429,1723607441400,-335.452633,0.00013634,2]
[334838430,1723607441410,-335.452633,0.00013634,2]
[334838431,1723607441420,-335.452633,0.00013634,2]
[334838432,1723607441430,-889.049536,0.00013634,2]
[334838433,1723607441440,-889.049536,0.00013634,2]
[334838434,1723607441450,-889.049536,0.00013634,2]
[334838435,1723607441461,-889.049536,0.00013634,2]
[334838436,1723607441471,-889.049536,0.00013634,2]
[334838437,1723607441481,-889.049536,0.00013634,2]
[334838438,1723607441491,-889.049536,0.00013634,2]
[334838439,1723607441500,-889.049536,0.00013634,2]
[334838440,1723607441510,-889.049536,0.00013634,2]
[334838441,1723607441519,-889.049536,0.00013634,2]
[334838442,1723607441531,-889.049536,0.00013634,2]
[334838443,1723607441543,-889.049536,0.00013634,2]
[334838444,1723607441554,-889.049536,0.00013634,2]
[334838445,1723607441566,-889.049536,0.00013634,2]
[334838446,1723607441577,-889.049536,0.00013634,2]
[334838447,1723607441588,-889.049536,0.00013634,2]
[334838448,1723607441598,-889.049536,0.00013634,2]
[334838449,1723607441607,-889.049536,0.00013634,2]
[334838450,1723607441619,-941.22988,0.00013634,2]
[334838451,1723607441630,-1754.986621,0.00013634,2]
[334838452,1723607441640,-941.22988,0.00013634,2]
[334838453,1723607441652,-941.22988,0.00013634,2]
[334838454,1723607441661,-1317.27352352,0.00013634,2]
[334838455,1723607441678,-268.20199972,0.00013634,2]
[334838456,1723607441846,-169.51109776,0.00013634,2]
[334838457,1723607441859,-326.1455779,0.00013634,2]
[334838494,1723607443034,-501.98208771,0.00013634,2]
[334838496,1723607443046,-309.32188637,0.00013634,2]
[334838500,1723607443062,-409.36729052,0.00013634,2]
[334838503,1723607443075,-208.1697785,0.00013634,2]
[334838504,1723607443085,-941.22988,0.00013634,2]
[334838506,1723607443094,-941.22988,0.00013634,2]
[334838508,1723607443107,-1754.986621,0.00013634,2]
[334838510,1723607443117,-1754.986621,0.00013634,2]
[334838512,1723607443126,-941.22988,0.00013634,2]
[334838513,1723607443135,-1754.986621,0.00013634,2]
[334838514,1723607443146,-941.22988,0.00013634,2]
[334838515,1723607443155,-1754.986621,0.00013634,2]
[334838516,1723607443164,-1754.986621,0.00013634,2]
[334838517,1723607443174,-941.22988,0.00013634,2]
[334838518,1723607443197,-1754.986621,0.00013634,2]
[334838519,1723607443208,-941.22988,0.00013634,2]
[334838520,1723607443219,-1754.986621,0.00013634,2]
[334838521,1723607443229,-941.22988,0.00013634,2]
[334838522,1723607443240,-1754.986621,0.00013634,2]
[334838523,1723607443251,-1754.986621,0.00013634,2]
[334838524,1723607443261,-1754.986621,0.00013634,2]
[334838525,1723607443271,-1754.986621,0.00013634,2]
[334838526,1723607443283,-1754.986621,0.00013634,2]
[334838527,1723607443292,-1754.986621,0.00013634,2]
[334838528,1723607443302,-1609.92433497,0.00013634,2]
[334838529,1723607443492,-273.37336231,9.9e-05,2]
[334838530,1723607443503,-120.536304,0.00013534,2]
[334846542,1723608638733,-273.37336231,8.688e-05,2]
[334846544,1723608638745,-273.37336231,8.776e-05,2]
[334846546,1723608638755,-300.0,9.998e-05,2]
[334846548,1723608638764,-503.63816987,9.999e-05,2]
[334846551,1723608638774,-155.28168282,9.999e-05,2]
[334846553,1723608638784,-388.45594175,9.999e-05,2]
[334846555,1723608638794,-422.1184028,9.999e-05,2]
[334846557,1723608638803,-154.8280935,9.999e-05,2]
[334846559,1723608638814,-154.80989456,9.999e-05,2]
[334846561,1723608638824,-154.90953897,9.999e-05,2]
[334846563,1723608638834,-288.65825875,0.0001,2]
[334846565,1723608638843,-420.0,0.00010998,2]
[334846567,1723608638853,-153.0,0.00012075,2]
[334846569,1723608638863,-153.0,0.00012075,2]
[334846571,1723608638873,-153.0,0.00012075,2]
[334846573,1723608638883,-153.0,0.00012075,2]
[334846575,1723608638891,-153.0,0.00012075,2]
[334846577,1723608638903,-153.0,0.00012075,2]
[334846579,1723608638913,-153.0,0.00012075,2]
[334846581,1723608638922,-153.0,0.00012075,2]
[334846583,1723608638932,-153.0,0.00012075,2]
[334846585,1723608638941,-153.0,0.00012075,2]
[334846587,1723608638951,-153.0,0.00012077,2]
[334846589,1723608638960,-153.0,0.00012077,2]
[334846591,1723608638970,-153.0,0.00012077,2]
[334846593,1723608638980,-153.0,0.00012077,2]
[334846595,1723608638990,-153.0,0.00012077,2]
[334846597,1723608638999,-153.0,0.00012077,2]
[334846599,1723608639009,-153.0,0.00012095,2]
[334846602,1723608639019,-153.0,0.00012095,2]
[334846604,1723608639028,-153.0,0.00012095,2]
[334846606,1723608639038,-153.0,0.00012095,2]
[334846608,1723608639049,-153.0,0.00012095,2]
[334846610,1723608639059,-153.0,0.00012095,2]
[334846612,1723608639068,-153.0,0.00012095,2]
[334846614,1723608639079,-153.0,0.00012095,2]
[334846616,1723608639090,-153.0,0.00012095,2]
[334846618,1723608639100,-153.0,0.00012095,2]
[334846620,1723608639110,-153.0,0.00012097,2]
[334846623,1723608639122,-153.0,0.00012097,2]
[334846625,1723608639132,-153.0,0.00012097,2]
[334846627,1723608639142,-153.0,0.00012097,2]
[334846629,1723608639152,-153.0,0.00012097,2]
[334846631,1723608639162,-153.0,0.00012097,2]
[334846633,1723608639172,-153.0,0.00012113,2]
[334846635,1723608639181,-153.0,0.00012113,2]
[334846637,1723608639191,-153.0,0.00012113,2]
[334846639,1723608639202,-153.0,0.00012113,2]
[334846641,1723608639212,-153.0,0.00012113,2]
[334846643,1723608639222,-153.0,0.00012113,2]
[334846645,1723608639233,-153.0,0.00012113,2]
[334846648,1723608639244,-153.0,0.00012113,2]
[334846650,1723608639255,-153.0,0.00012113,2]
[334846652,1723608639264,-153.0,0.00012113,2]
[334846654,1723608639274,-153.0,0.00012116,2]
[334846656,1723608639284,-153.0,0.00012116,2]
[334846658,1723608639294,-153.0,0.00012116,2]
[334846660,1723608639307,-153.0,0.00012116,2]
[334846662,1723608639327,-153.0,0.00012116,2]
[334846664,1723608639346,-153.0,0.00012116,2]
[334846666,1723608639369,-153.0,0.00012132,2]
[334846668,1723608639380,-153.0,0.00012132,2]
[334846670,1723608639390,-153.0,0.00012132,2]
[334846672,1723608639399,-153.0,0.00012132,2]
[334846674,1723608639409,-153.0,0.00012132,2]
[334846676,1723608639418,-153.0,0.00012132,2]
[334846678,1723608639428,-153.0,0.00012132,2]
[334846680,1723608639438,-153.0,0.00012132,2]
[334846682,1723608639447,-153.0,0.00012132,2]
[334846684,1723608639457,-153.0,0.00012132,2]
[334846686,1723608639467,-153.0,0.00012134,2]
[334846688,1723608639477,-153.0,0.00012134,2]
[334846690,1723608639486,-153.0,0.00012134,2]
[334846692,1723608639495,-153.0,0.00012134,2]
[334846694,1723608639504,-153.0,0.00012134,2]
[334846696,1723608639514,-153.0,0.00012134,2]
[334846698,1723608639524,-153.0,0.000122,2]
[334846700,1723608639534,-207.3931713,0.000122,2]
[334846702,1723608639543,-294.3636499,0.000122,2]
[334846704,1723608639554,-535.9603938,0.00012219,2]
[334846706,1723608639563,-500.0,0.00012986,2]
[334846708,1723608639573,-207.3931713,0.00013,2]
[334846710,1723608639583,-153.0,0.00013,2]
[334846712,1723608639592,-207.3931713,0.00013,2]
[334846714,1723608639604,-308.1506605,0.00013,2]
[334846716,1723608639617,-207.3931713,0.00013,2]
[334846718,1723608639627,-206.2087076,0.00013,2]
[334846720,1723608639637,-153.0,0.00013,2]
[334846722,1723608639649,-368.5308972,0.00013,2]
[334846724,1723608639659,-267.9801969,0.00013,2]
[334846726,1723608639668,-294.8038627,0.00013,2]
[334846728,1723608639678,-153.0,0.00013,2]
[334846730,1723608639690,-207.3931713,0.00013,2]
[334846732,1723608639700,-207.3931713,0.00013,2]
[334846734,1723608639709,-153.0,0.00013,2]
[334846736,1723608639718,-267.9801969,0.00013,2]
[334846738,1723608639728,-294.8038627,0.00013,2]
[334846740,1723608639738,-153.0,0.00013041,2]
[334846742,1723608639747,-153.0,0.00013041,2]
[334846744,1723608639758,-153.0,0.000131,2]
[334846746,1723608639769,-267.9801969,0.000131,2]
[334846748,1723608639781,-306.0,0.000131,2]
[334846750,1723608639792,-506.20673192,0.000131,2]
[334846754,1723608639805,-82.49881798,0.000131,2]
[334846756,1723608639814,-153.0,0.000131,2]
[334846758,1723608639824,-207.3931713,0.000131,2]
[334846760,1723608639834,-288.4418541,0.000131,2]
[334846762,1723608639846,-153.0,0.000131,2]
[334846765,1723608639857,-535.9603938,0.000131,2]
[334846767,1723608639870,-294.8038627,0.000131,2]
[334846769,1723608639882,-294.6834504,0.00013214,2]
[334846771,1723608639893,-153.780088,0.000133,2]
[334846773,1723608639904,-306.0,0.000133,2]
[334846776,1723608639915,-153.0,0.000133,2]
[334846778,1723608639926,-306.0,0.000133,2]
[334846780,1723608639937,-294.8038627,0.000133,2]
[334846782,1723608639948,-153.0,0.000133,2]
[334846784,1723608639958,-153.0,0.000133,2]
[334846786,1723608639967,-414.3166971,0.000133,2]
[334846789,1723608639977,-535.9603938,0.000133,2]
[334846791,1723608639988,-153.0,0.000133,2]
[334846793,1723608639999,-409.19311986,0.00013525,2]
[334846795,1723608640010,-409.19311982,0.00013527,2]
[334846798,1723608640021,-409.19311982,0.0001353,2]
[334846800,1723608640031,-409.19311982,0.00013532,2]
[334846802,1723608640040,-510.12217652,0.00013534,2]
[334846804,1723608640051,-1384.62341381,0.00013534,2]
[334846806,1723608640061,-1000.0,0.00013534,2]
[334846808,1723608640070,-409.19311982,0.00013534,2]
[334846810,1723608640080,-1094.57218202,0.00013534,2]
[334846812,1723608640089,-150.112233,0.000136,2]
[334846814,1723608640099,-150.112233,0.000136,2]
[334846816,1723608640109,-150.112233,0.000136,2]
[334846818,1723608640120,-150.112233,0.000136,2]
[334846820,1723608640131,-150.112236,0.000136,2]
[334846823,1723608640141,-32675.31801515,0.000136,2]
[334846825,1723608640151,-150.112236,0.000136,2]
[334846827,1723608640162,-37864.9265537,0.000136,2]
[334846829,1723608640172,-602.0,0.000136,2]
[334846831,1723608640182,-76310.1263284,0.00013623,2]
[334846833,1723608640193,-3254.7,0.00013623,2]
[334846835,1723608640203,-3254.7,0.00013623,2]
[334846838,1723608640214,-3254.7,0.00013623,2]
[334846840,1723608640224,-3254.7,0.00013623,2]
[334846842,1723608640234,-3254.7,0.00013623,2]
[334846844,1723608640244,-3254.7,0.00013623,2]
[334846846,1723608640254,-3254.7,0.00013623,2]
[334846848,1723608640263,-3254.7,0.00013623,2]
[334846851,1723608640274,-3254.7,0.00013623,2]
[334846853,1723608640284,-2592.74683501,0.00013624,2]
[334846855,1723608640293,-305240.505313,0.00013624,2]
[334846857,1723608640302,-151.0,0.00013633,2]
[334846859,1723608640311,-151.0,0.00013633,2]
[334846861,1723608640321,-151.0,0.00013633,2]
[334846863,1723608640330,-1027.582265,0.00013633,2]
[334846865,1723608640339,-1027.582265,0.00013633,2]
[334846867,1723608640349,-151.0,0.00013633,2]
[334846869,1723608640360,-152.784599,0.00013633,2]
[334846871,1723608640371,-151.0,0.00013633,2]
[334846873,1723608640380,-151.0,0.00013633,2]
[334846875,1723608640389,-1145.473201,0.00013633,2]
[334846877,1723608640398,-2523.475196,0.00013633,2]
[334846879,1723608640407,-151.0,0.00013633,2]
[334846882,1723608640417,-1145.473201,0.00013633,2]
[334846884,1723608640426,-2523.475196,0.00013633,2]
[334846886,1723608640435,-264.678393,0.00013633,2]
[334846887,1723608640445,-264.678393,0.00013633,2]
[334846889,1723608640455,-843.752878,0.00013633,2]
[334846891,1723608640464,-843.752878,0.00013633,2]
[334846893,1723608640473,-3254.7,0.00013633,2]
[334846895,1723608640482,-3254.7,0.00013633,2]
[334846898,1723608640493,-3254.7,0.00013633,2]
[334846900,1723608640502,-3254.7,0.00013633,2]
[334846902,1723608640512,-3254.7,0.00013633,2]
[334846904,1723608640524,-3254.7,0.00013633,2]
[334846906,1723608640535,-3254.7,0.00013633,2]
[334846908,1723608640546,-3254.7,0.00013633,2]
[334846910,1723608640557,-151.0,0.00013633,2]
[334846913,1723608640569,-151.0,0.00013633,2]
[334846915,1723608640580,-611.799422,0.00013633,2]
[334846917,1723608640591,-611.799422,0.00013633,2]
[334846919,1723608640601,-889.049536,0.00013633,2]
[334846921,1723608640617,-889.049536,0.00013633,2]
[334846923,1723608640626,-151.0,0.00013633,2]
[334846925,1723608640636,-151.0,0.00013633,2]
[334846927,1723608640645,-151.0,0.00013633,2]
[334846929,1723608640655,-151.0,0.00013633,2]
[334846931,1723608640665,-151.0,0.00013633,2]
[334846933,1723608640674,-151.0,0.00013633,2]
[334846935,1723608640686,-151.0,0.00013633,2]
[334846937,1723608640696,-4190.418155,0.00013633,2]
[334846939,1723608640706,-4190.418155,0.00013633,2]
[334846941,1723608640716,-274.202695,0.00013633,2]
[334846943,1723608640727,-274.202695,0.00013633,2]
[334846945,1723608640736,-151.0,0.00013633,2]
[334846962,1723608640894,-3101.451503,0.00013633,2]
[334846965,1723608640909,-3101.451503,0.00013633,2]
[334846967,1723608640919,-151.0,0.00013633,2]
[334846970,1723608640931,-151.0,0.00013633,2]
[334846972,1723608640941,-151.0,0.00013634,2]
[334846974,1723608640951,-151.0,0.00013634,2]
[334846976,1723608640962,-151.0,0.00013634,2]
[334846978,1723608640971,-151.0,0.00013634,2]
[334846980,1723608640981,-152.446725,0.00013634,2]
[334846982,1723608640991,-151.0,0.00013634,2]
[334846985,1723608641002,-151.989095,0.00013634,2]
[334846987,1723608641012,-151.0,0.00013634,2]
[334846989,1723608641022,-151.0,0.00013634,2]
[334846991,1723608641033,-151.0,0.00013634,2]
[334846993,1723608641043,-151.0,0.00013634,2]
[334846995,1723608641055,-151.0,0.00013634,2]
[334846998,1723608641067,-335.452633,0.00013634,2]
[334847000,1723608641078,-335.452633,0.00013634,2]
[334847002,1723608641089,-335.452633,0.00013634,2]
[334847004,1723608641100,-335.452633,0.00013634,2]
[334847006,1723608641109,-335.452633,0.00013634,2]
[334847008,1723608641120,-335.452633,0.00013634,2]
[334847011,1723608641132,-335.452633,0.00013634,2]
[334847013,1723608641142,-335.452633,0.00013634,2]
[334847015,1723608641151,-151.0,0.00013634,2]
[334847017,1723608641160,-151.0,0.00013634,2]
[334847019,1723608641170,-151.0,0.00013634,2]
[334847021,1723608641179,-151.0,0.00013634,2]
[334847023,1723608641188,-151.0,0.00013634,2]
[334847025,1723608641197,-897.225914,0.00013634,2]
[334847027,1723608641208,-897.225914,0.00013634,2]
[334847029,1723608641219,-897.225914,0.00013634,2]
[334847031,1723608641231,-897.225914,0.00013634,2]
[334847033,1723608641241,-897.225914,0.00013634,2]
[334847035,1723608641252,-897.225914,0.00013634,2]
[334847038,1723608641262,-897.225914,0.00013634,2]
[334847040,1723608641274,-897.225914,0.00013634,2]
[334847042,1723608641286,-246.89958591,0.00013634,2]
[334847045,1723608641301,-650.32632809,0.00013634,2]
[334847047,1723608641312,-897.225914,0.00013634,2]
[334847049,1723608641323,-151.0,0.00013634,2]
[334847051,1723608641333,-151.0,0.00013634,2]
[334847053,1723608641343,-151.0,0.00013634,2]
[334847055,1723608641353,-151.0,0.00013634,2]
[334847057,1723608641364,-151.0,0.00013634,2]
[334847060,1723608641374,-153.239316,0.00013634,2]
[334847062,1723608641384,-151.0,0.00013634,2]
[334847064,1723608641394,-151.0,0.00013634,2]
[334847066,1723608641405,-151.0,0.00013634,2]
[334847068,1723608641415,-151.0,0.00013634,2]
[334847070,1723608641426,-151.0,0.00013634,2]
[334847072,1723608641437,-241.225798,0.00013634,2]
[334847074,1723608641448,-241.225798,0.00013634,2]
[334847076,1723608641457,-241.225798,0.00013634,2]
[334847078,1723608641469,-241.225798,0.00013634,2]
[334847081,1723608641480,-241.225798,0.00013634,2]
[334847083,1723608641491,-241.225798,0.00013634,2]
[334847085,1723608641501,-241.225798,0.00013634,2]
[334847087,1723608641512,-241.225798,0.00013634,2]
[334847089,1723608641522,-241.225798,0.00013634,2]
[334847091,1723608641532,-241.225798,0.00013634,2]
[334847093,1723608641542,-169.886318,0.00013634,2]
[334847095,1723608641555,-169.886318,0.00013634,2]
[334847097,1723608641566,-169.886318,0.00013634,2]
[334847100,1723608641576,-169.886318,0.00013634,2]